bitfinex-derivatives/quotes_SOLF0:USTF0_20251101
["timestamp","ask_amount","ask_price","bid_price","bid_amount"]
[1761962498541,0.03393357,186.07,186.03,2.93]
[1761962498747,9.09469178,186.06,186.03,2.93]
[1761962498947,0.03393357,186.07,186.03,2.93]
[1761962499148,9.0946918,186.06,186.03,2.93]
[1761962499453,4.47228838,186.05,186.03,2.93]
[1761962499653,4.47228838,186.04,186.03,2.93]
[1761962507364,9.10502615,186.04,186.03,2.93]
[1761962508966,9.51013944,186.04,186.03,2.93]
[1761962517365,9.51013944,186.04,186.02,4.56168519]
[1761962517568,9.51013944,186.03,186.02,4.56168519]
[1761962519169,9.18349929,186.03,186.02,4.56168519]
[1761962523375,9.18349929,186.03,186.02,11.25830539]
[1761962524979,9.18349929,186.03,186.02,4.56168519]
[1761962528276,9.18349929,186.03,186.02,11.25830539]
[1761962529174,4.55015296,186.03,186.02,11.25830539]
[1761962530383,4.55015296,186.03,186.02,4.56168519]
[1761962530580,0.03393357,186.07,186.02,4.56168519]
[1761962530776,0.03393357,186.07,186.05,2.73]
[1761962530777,8.94222006,186.06,186.05,2.73]
[1761962531079,4.55130446,186.06,186.05,1.83168519]
[1761962531273,4.39121883,186.06,186.05,5.03773245]
[1761962531577,5.47121883,186.06,186.03,5.03773245]
[1761962531876,4.39121883,186.05,186.02,5.03773245]
[1761962532080,4.39121883,186.04,186.01,3.245e-05]
[1761962532273,1.83168519,186.06,185.96,12.76910189]
[1761962532274,4.8412,186.0,185.98,6.71677437]
[1761962532479,4.39121883,185.99,185.97,6.71677437]
[1761962532681,4.39121883,185.98,185.93,0.93584865]
[1761962532881,4.39121883,185.97,185.92,2.73]
[1761962533083,4.39121883,185.96,185.92,2.73]
[1761962533286,4.39121883,185.95,185.92,2.73]
[1761962533482,4.39121883,185.94,185.91,2.73]
[1761962533671,1.83168519,185.98,185.91,2.73]
[1761962533870,4.84985324,185.97,185.91,2.73]
[1761962534085,4.84985324,185.96,185.91,2.73]
[1761962534284,4.84985324,185.95,185.91,2.73]
[1761962534588,1.83168519,185.98,185.91,2.73]
[1761962534776,4.84627729,185.97,185.91,2.73]
[1761962534978,4.84627729,185.96,185.91,2.73]
[1761962535181,4.84627729,185.95,185.91,2.73]
[1761962535384,1.83168519,185.98,185.91,2.73]
[1761962535584,4.84435792,185.97,185.91,2.73]
[1761962535783,4.84435792,185.96,185.91,2.73]
[1761962535979,4.84435792,185.95,185.91,2.73]
[1761962536183,0.03419796,185.95,185.91,2.73]
[1761962539174,4.83789909,185.94,185.9,3.82602485]
[1761962539378,0.03419796,185.95,185.9,3.82602485]
[1761962539990,4.8351505,185.94,185.9,3.82602485]
[1761962540289,1.86588315,185.95,185.87,2.89]
[1761962540475,1.83168519,185.92,185.85,10.08428574]
[1761962540675,0.03419796,185.95,185.85,10.08428574]
[1761962540676,1.83168519,185.9,185.85,10.08428574]
[1761962540882,4.83224147,185.89,185.85,10.08428574]
[1761962541085,4.83224147,185.88,185.85,10.08428574]
[1761962541288,1.83168519,185.9,185.85,10.08428574]
[1761962541587,1.83168519,185.88,185.85,10.08428574]
[1761962541791,4.82429648,185.87,185.85,10.08428574]
[1761962541991,4.82429648,185.86,185.85,10.08428574]
[1761962542193,6.65598167,185.86,185.85,10.08428574]
[1761962542688,4.82429648,185.86,185.85,10.08428574]
[1761962542883,4.81566457,185.86,185.85,10.08428574]
[1761962543281,4.74653753,185.86,185.85,10.08428574]
[1761962543693,4.6739296,185.88,185.85,10.08428574]
[1761962543894,9.42055866,185.87,185.85,10.08428574]
[1761962544093,4.6739296,185.86,185.85,10.08428574]
[1761962544294,4.6739296,185.9,185.85,10.08428574]
[1761962544496,9.41561437,185.89,185.85,10.08428574]
[1761962544685,9.41561437,185.88,185.85,10.08428574]
[1761962544890,9.41561437,185.87,185.85,10.08428574]
[1761962545090,4.6739296,185.86,185.85,10.08428574]
[1761962545490,1.08,185.86,185.85,10.08428574]
[1761962545692,5.7539296,185.86,185.85,10.08428574]
[1761962545890,7.58561479,185.86,185.78,1.83168519]
[1761962546092,9.41049889,185.85,185.78,1.83168519]
[1761962546393,11.22336194,185.84,185.75,1.83168519]
[1761962546690,9.39167675,185.83,185.77,1.83168519]
[1761962546891,9.39167675,185.82,185.79,1.83168519]
[1761962547098,4.65978304,185.81,185.79,1.83168519]
[1761962547293,4.65978304,185.8,185.79,1.83168519]
[1761962547496,12.9,185.87,185.79,1.83168519]
[1761962547693,9.37863263,185.86,185.79,1.83168519]
[1761962547991,9.37863263,185.85,185.81,1.83168519]
[1761962548191,0.03410587,185.82,185.79,2.89]
[1761962548989,9.37284145,185.89,185.79,2.89]
[1761962549189,9.37284145,185.88,185.79,2.89]
[1761962549395,9.37284145,185.87,185.83,1.83168519]
[1761962549596,9.37284145,185.86,185.83,1.83168519]
[1761962549789,4.65025775,185.85,185.83,1.83168519]
[1761962549993,4.65025775,185.84,185.83,1.83168519]
[1761962550195,4.65025775,185.91,185.83,1.83168519]
[1761962550498,9.36796317,185.9,185.83,1.83168519]
[1761962550694,9.36796317,185.89,185.81,1.83168519]
[1761962550891,9.36796317,185.88,185.81,1.83168519]
[1761962551198,9.36796317,185.88,185.79,2.89]
[1761962551199,9.36796317,185.87,185.79,1.83168519]
[1761962551499,9.36796317,185.86,185.79,1.83168519]
[1761962551695,4.65025775,185.85,185.79,1.83168519]
[1761962551887,4.65025775,185.84,185.79,1.83168519]
[1761962552095,4.65025775,185.83,185.79,1.83168519]
[1761962552293,1.83168519,185.88,185.79,1.83168519]
[1761962552499,9.35373096,185.87,185.79,1.83168519]
[1761962552700,9.35373096,185.86,185.8,1.83168519]
[1761962552994,4.64092227,185.85,185.8,1.83168519]
[1761962553200,4.64092227,185.84,185.8,1.83168519]
[1761962553397,4.64092227,185.83,185.8,1.83168519]
[1761962553600,0.03414276,185.84,185.8,1.83168519]
[1761962554203,0.03414276,185.84,185.79,1.83168519]
[1761962554404,4.67338299,185.84,185.79,1.83168519]
[1761962554601,4.63924023,185.83,185.79,1.83168519]
[1761962554804,0.03414276,185.84,185.79,1.83168519]
[1761962555206,0.03414276,185.84,185.77,2.89]
[1761962555408,4.67198345,185.84,185.77,2.89]
[1761962555608,4.63784069,185.83,185.73,2.89]
[1761962555809,4.63743341,185.82,185.73,2.89]
[1761962556008,4.63743341,185.81,185.73,2.89]
[1761962556313,4.63743341,185.8,185.73,2.89]
[1761962556607,2.86997426,185.85,185.73,2.89]
[1761962556802,13.3772332,185.84,185.73,2.89]
[1761962557000,9.34212833,185.83,185.73,2.89]
[1761962557207,4.63535772,185.82,185.73,2.89]
[1761962557416,4.63535772,185.81,185.73,2.89]
[1761962557608,4.63535772,185.8,185.73,2.89]
[1761962557809,2.86997426,185.85,185.73,2.89]
[1761962558009,13.37399523,185.84,185.73,2.89]
[1761962558311,9.33984178,185.83,185.73,2.89]
[1761962558513,9.33984178,185.82,185.73,2.89]
[1761962558714,4.66841768,185.81,185.73,2.89]
[1761962558900,4.63422335,185.8,185.73,2.89]
[1761962559112,4.8474,185.77,185.73,2.89]
[1761962560417,4.78251994,185.76,185.73,2.89]
[1761962560708,4.8474,185.77,185.73,2.89]
[1761962560709,0.03406755,185.77,185.73,5.75997426]
[1761962560913,0.03406755,185.77,185.74,2.89]
[1761962563312,4.78191891,185.76,185.74,2.89]
[1761962563517,0.03406755,185.77,185.74,2.89]
[1761962563705,4.78219139,185.76,185.74,2.89]
[1761962563908,0.03406755,185.77,185.74,2.89]
[1761962564216,4.78219011,185.76,185.74,2.89]
[1761962564415,0.03406755,185.77,185.74,2.89]
[1761962564714,4.78273893,185.76,185.74,2.89]
[1761962564913,4.78273893,185.75,185.74,2.89]
[1761962565114,4.7794723,185.75,185.74,2.89]
[1761962576322,4.8145996,185.75,185.74,2.89]
[1761962576619,4.88136755,185.77,185.74,2.89]
[1761962576822,4.5333077,185.76,185.74,2.89]
[1761962577019,4.88136755,185.77,185.74,2.89]
[1761962577222,4.53729149,185.76,185.74,2.89]
[1761962577521,4.53729149,185.75,185.74,2.89]
[1761962579419,4.54345853,185.75,185.74,2.89]
[1761962581128,9.17932425,185.75,185.74,2.89]
[1761962582425,13.15873975,185.75,185.71,2.79]
[1761962582624,13.15873975,185.74,185.71,2.79]
[1761962582816,9.17932425,185.73,185.71,2.79]
[1761962583134,4.50876962,185.72,185.71,2.79]
[1761962583421,4.930915,185.81,185.71,2.79]
[1761962583625,13.07362053,185.8,185.71,2.79]
[1761962583822,13.07362053,185.79,185.71,2.79]
[1761962584020,2.86997426,185.82,185.71,2.79]
[1761962584021,9.15575328,185.78,185.71,2.79]
[1761962584320,9.15575328,185.77,185.71,2.79]
[1761962584525,4.5088306,185.76,185.71,2.79]
[1761962584723,2.86997426,185.82,185.71,2.79]
[1761962584923,8.60381778,185.81,185.71,2.79]
[1761962585119,8.60381778,185.8,185.71,2.79]
[1761962585322,8.60381778,185.79,185.71,2.79]
[1761962585527,8.60381778,185.78,185.71,2.79]
[1761962585827,8.60381778,185.77,185.71,2.79]
[1761962586027,8.60381778,185.76,185.71,2.79]
[1761962586325,4.28906445,185.75,185.71,2.79]
[1761962586525,2.86997426,185.84,185.71,2.79]
[1761962586720,8.62210653,185.83,185.71,2.79]
[1761962586920,8.62210653,185.82,185.71,2.79]
[1761962587228,2.86997426,185.84,185.71,2.79]
[1761962587229,8.62210653,185.81,185.71,2.79]
[1761962587428,8.62210653,185.8,185.71,2.79]
[1761962587628,8.62210653,185.79,185.71,2.79]
[1761962587828,8.62210653,185.78,185.71,2.79]
[1761962588027,8.62210653,185.77,185.71,2.79]
[1761962588228,4.29818067,185.76,185.71,2.79]
[1761962588531,4.29818067,185.75,185.71,2.79]
[1761962588830,2.86997426,185.84,185.71,2.79]
[1761962589029,4.8473,185.77,185.71,2.79]
[1761962589230,4.30146961,185.76,185.71,2.79]
[1761962589427,4.30146961,185.75,185.71,2.79]
[1761962589733,4.8479,185.75,185.71,2.79]
[1761962592024,4.8479,185.75,185.7,6.69468646]
[1761962592025,4.8479,185.75,185.73,2.79]
[1761962592330,4.8479,185.75,185.74,2.79]
[1761962592929,4.8479,185.75,185.74,7.82634755]
[1761962596326,0.03401553,185.76,185.74,2.79]
[1761962596530,0.03401553,185.76,185.72,6.69468646]
[1761962596531,0.03401553,185.76,185.75,7.77898432]
[1761962599430,0.03401553,185.76,185.75,2.74]
[1761962600727,4.37216784,185.76,185.75,2.74]
[1761962601730,4.37216784,185.76,185.75,5.0432958]
[1761962602127,4.37216784,185.76,185.75,9.58e-05]
[1761962602527,4.37216784,185.76,185.72,2.88]
[1761962602724,4.33815231,185.75,185.71,6.69468646]
[1761962602937,4.33815231,185.74,185.71,9.57468646]
[1761962603235,9.18645231,185.73,185.71,6.69468646]
[1761962603436,8.78005637,185.72,185.7,9.57468646]
[1761962603742,4.44190406,185.71,185.7,9.57468646]
[1761962604340,9.29070406,185.71,185.68,2.88]
[1761962604636,0.03401553,185.76,185.68,2.88]
[1761962604838,8.55075962,185.75,185.68,2.88]
[1761962605040,8.55075962,185.74,185.68,2.88]
[1761962605237,8.55075962,185.73,185.68,2.88]
[1761962605437,4.33608583,185.72,185.68,2.88]
[1761962605641,2.86997426,185.82,185.68,2.88]
[1761962605838,8.54751981,185.81,185.68,2.88]
[1761962606036,8.54751981,185.8,185.69,2.88]
[1761962606237,8.54751981,185.79,185.69,2.88]
[1761962606532,4.8482,185.74,185.69,2.88]
[1761962606835,4.33467177,185.73,185.69,2.88]
[1761962607044,4.8475,185.77,185.69,2.88]
[1761962607235,8.54776178,185.76,185.72,2.88]
[1761962607436,8.54776178,185.75,185.72,2.88]
[1761962607639,9.6917,185.83,185.72,2.88]
[1761962607940,8.54769853,185.82,185.72,2.88]
[1761962608141,8.54769853,185.81,185.72,2.88]
[1761962608449,8.54769853,185.8,185.72,2.88]
[1761962608637,8.54769853,185.79,185.72,2.88]
[1761962608836,8.54769853,185.78,185.72,2.88]
[1761962609135,4.8477,185.76,185.72,2.88]
[1761962609332,8.54769853,185.75,185.72,2.88]
[1761962609533,4.8477,185.76,185.72,2.88]
[1761962609739,8.54825982,185.75,185.72,2.88]
[1761962609944,4.8477,185.76,185.72,2.88]
[1761962610140,8.54826202,185.75,185.72,2.88]
[1761962610344,4.8477,185.76,185.72,2.88]
[1761962610544,8.5486814,185.75,185.72,2.88]
[1761962610841,4.8477,185.76,185.72,2.88]
[1761962611045,13.3966825,185.75,185.72,2.88]
[1761962611243,4.848,185.75,185.72,2.88]
[1761962611743,4.8474,185.77,185.72,2.88]
[1761962611949,8.54926755,185.76,185.72,2.88]
[1761962612141,4.8474,185.77,185.72,2.88]
[1761962612338,8.54924197,185.76,185.72,2.88]
[1761962612534,4.8474,185.77,185.72,2.88]
[1761962612841,8.55121217,185.76,185.72,2.88]
[1761962613042,12.56107426,185.84,185.72,2.88]
[1761962613241,8.55089497,185.83,185.72,2.88]
[1761962613444,8.55089497,185.82,185.72,2.88]
[1761962613748,8.55089497,185.81,185.72,2.88]
[1761962613942,4.8479,185.75,185.72,2.88]
[1761962614239,12.56107426,185.84,185.72,2.88]
[1761962614544,4.8474,185.77,185.72,2.88]
[1761962614844,2.86997426,185.87,185.74,2.88]
[1761962615040,8.55207184,185.86,185.74,2.88]
[1761962615240,8.55207184,185.85,185.74,2.88]
[1761962615446,4.8472,185.78,185.76,2.88]
[1761962617550,4.8466,185.8,185.76,2.88]
[1761962617851,1.8368124,185.88,185.78,2.88]
[1761962618147,4.1831816,185.87,185.8,2.88]
[1761962618445,4.8461,185.82,185.8,2.88]
[1761962621545,4.8465,185.8,185.76,2.88]
[1761962621743,1.8368124,185.85,185.75,1.8368124]
[1761962622047,4.22047227,185.84,185.75,1.8368124]
[1761962622250,4.8475,185.77,185.74,2.88]
[1761962622750,4.46490953,185.76,185.74,2.88]
[1761962623049,4.8475,185.77,185.74,2.88]
[1761962623247,4.46451244,185.76,185.74,2.88]
[1761962623544,1.8368124,185.83,185.71,12.8993426]
[1761962623750,8.68425899,185.82,185.72,1.8368124]
[1761962623947,1.8368124,185.83,185.72,1.8368124]
[1761962623948,8.68425899,185.81,185.72,1.8368124]
[1761962624250,8.68425899,185.8,185.72,1.8368124]
[1761962624442,8.68425899,185.79,185.72,1.8368124]
[1761962624643,4.8479,185.75,185.73,2.88]
[1761962625658,1.8368124,185.81,185.73,2.88]
[1761962625659,4.8473,185.77,185.73,2.88]
[1761962626042,1.8368124,185.81,185.73,2.88]
[1761962626350,8.45685807,185.8,185.73,2.88]
[1761962626536,8.45685807,185.79,185.73,2.88]
[1761962626738,8.45685807,185.78,185.73,2.88]
[1761962626937,4.8477,185.76,185.73,2.88]
[1761962631750,4.8477,185.76,185.74,1.8368124]
[1761962631952,4.8477,185.76,185.74,4.5468124]
[1761962632450,4.8477,185.76,185.75,2.71]
[1761962632860,1.8368124,185.83,185.75,2.71]
[1761962633047,8.45543506,185.82,185.75,2.71]
[1761962633247,8.45543506,185.81,185.76,1.8368124]
[1761962633450,13.30203506,185.8,185.77,2.71]
[1761962633653,1.8368124,185.89,185.79,2.71]
[1761962633853,8.45633572,185.88,185.81,1.8368124]
[1761962634053,8.45633572,185.87,185.81,1.8368124]
[1761962634254,1.8368124,185.89,185.81,4.5468124]
[1761962634255,8.45633572,185.86,185.81,4.5468124]
[1761962634562,1.8368124,185.89,185.82,2.71]
[1761962634563,4.8458,185.83,185.82,2.71]
[1761962635055,9.06529438,185.83,185.82,2.71]
[1761962635259,4.8464,185.81,185.78,2.71]
[1761962635452,4.8464,185.81,185.79,2.71]
[1761962642858,4.8457,185.84,185.81,2.71]
[1761962643663,4.8457,185.84,185.83,2.71]
[1761962644351,4.87988471,185.84,185.83,2.71]
[1761962645461,0.03418471,185.84,185.83,2.71]
[1761962645661,1.8368124,185.92,185.83,2.71]
[1761962645856,4.13980409,185.91,185.85,2.71]
[1761962646561,4.8448,185.87,185.85,2.71]
[1761962647362,4.8441,185.9,185.85,2.71]
[1761962647558,4.8441,185.9,185.87,2.71]
[1761962649867,4.8443,185.89,185.87,2.71]
[1761962652565,4.8438,185.91,185.88,2.71]
[1761962657458,4.8432,185.93,185.88,2.71]
[1761962657670,1.8368124,185.97,185.88,2.71]
[1761962658363,4.8435,185.92,185.88,2.71]
[1761962659577,4.8438,185.91,185.88,2.71]
[1761962661259,4.8438,185.91,185.88,2.7462543]
[1761962664577,1.8368124,185.95,185.88,2.7462543]
[1761962664578,4.844,185.9,185.88,2.7462543]
[1761962666863,4.844,185.9,185.88,0.0362543]
[1761962667367,4.844,185.9,185.88,2.6962543]
[1761962667871,4.844,185.9,185.88,0.0362543]
[1761962669179,1.8368124,185.89,185.88,0.0362543]
[1761962673783,1.8368124,185.87,185.81,5.00130947]
[1761962674185,1.8368124,185.87,185.81,7.80130947]
[1761962675086,4.8457,185.83,185.82,2.8]
[1761962675384,4.8457,185.83,185.82,7.80130947]
[1761962676981,4.8457,185.83,185.82,2.8]
[1761962677183,4.8457,185.83,185.82,7.80130947]
[1761962679487,4.8457,185.83,185.82,2.8]
[1761962681687,4.8457,185.83,185.81,5.00130947]
[1761962682182,4.8457,185.83,185.82,2.8]
[1761962694398,0.03494528,185.84,185.8,5.00130947]
[1761962694399,4.8463,185.81,185.8,9.47e-06]
[1761962694600,0.03494528,185.84,185.76,6.70890677]
[1761962694993,4.847,185.78,185.76,2.73]
[1761962701308,0.03506165,185.79,185.76,2.73]
[1761962701804,4.88196165,185.79,185.76,2.73]
[1761962701997,0.03506165,185.79,185.76,2.73]
[1761962703706,4.8472,185.78,185.76,2.73]
[1761962704910,4.8477,185.76,185.74,9.43890677]
[1761962705203,4.8477,185.76,185.74,2.73]
[1761962711211,4.8472,185.78,185.74,2.73]
[1761962711412,0.03506165,185.79,185.76,2.73]
[1761962711708,4.1242749,185.89,185.79,2.73]
[1761962711908,4.1242749,185.88,185.79,2.73]
[1761962712112,4.1242749,185.87,185.79,2.73]
[1761962712314,4.8458,185.83,185.79,2.73]
[1761962713420,4.8461,185.82,185.79,2.73]
[1761962716931,4.8464,185.81,185.79,2.73]
[1761962717142,2.86898366,185.9,185.79,2.73]
[1761962717334,4.12782189,185.89,185.79,2.73]
[1761962717634,4.12782189,185.88,185.79,2.73]
[1761962717939,4.12782189,185.87,185.79,2.73]
[1761962718134,4.12782189,185.86,185.79,2.73]
[1761962718334,4.12782189,185.85,185.79,2.73]
[1761962718534,4.12782189,185.84,185.79,2.73]
[1761962718736,2.86898366,185.9,185.79,2.73]
[1761962718937,4.12939463,185.89,185.79,2.73]
[1761962719138,4.12939463,185.88,185.8,2.7]
[1761962719339,4.12939463,185.87,185.8,2.73435688]
[1761962719538,4.12939463,185.86,185.8,2.73435688]
[1761962719739,4.12939463,185.85,185.8,2.73435688]
[1761962719942,2.86898366,185.9,185.8,2.73435688]
[1761962720148,4.12982799,185.89,185.8,2.73435688]
[1761962720344,4.12982799,185.88,185.8,2.73435688]
[1761962720645,4.12982799,185.87,185.8,2.73435688]
[1761962720848,4.12982799,185.86,185.8,2.73435688]
[1761962721148,4.12982799,185.85,185.8,2.73435688]
[1761962721449,4.12982799,185.84,185.8,2.73435688]
[1761962721642,2.86898366,185.9,185.8,2.73435688]
[1761962721941,4.13065511,185.89,185.8,2.73435688]
[1761962722136,4.13065511,185.88,185.8,2.73435688]
[1761962722340,4.13065511,185.87,185.8,2.73435688]
[1761962722541,4.13065511,185.86,185.8,2.73435688]
[1761962722843,4.13065511,185.85,185.8,2.73435688]
[1761962723036,4.8459,185.83,185.8,2.73435688]
[1761962723237,2.86898366,185.9,185.8,0.03435688]
[1761962723442,2.86898366,185.87,185.8,0.03435688]
[1761962723748,4.8462,185.82,185.8,0.03435688]
[1761962723949,4.13061734,185.81,185.8,0.03435688]
[1761962724249,8.44560867,185.81,185.73,9.40890677]
[1761962724449,8.44560867,185.8,185.73,9.40890677]
[1761962724645,8.44560867,185.79,185.73,9.40890677]
[1761962724848,8.44560867,185.78,185.73,9.40890677]
[1761962725050,8.44560867,185.77,185.73,9.40890677]
[1761962725247,4.8478,185.75,185.73,9.40890677]
[1761962725451,4.8478,185.75,185.74,2.7]
[1761962727450,4.8478,185.75,185.73,6.70890677]
[1761962727649,4.8478,185.75,185.72,2.7]
[1761962728150,4.8478,185.75,185.71,6.70890677]
[1761962728360,4.8483,185.74,185.71,9.40890677]
[1761962728559,0.03403848,185.76,185.7,6.70890677]
[1761962728748,4.8486,185.73,185.7,2.7]
[1761962732454,4.88302079,185.73,185.7,2.7]
[1761962737159,4.8488,185.72,185.7,2.7]
[1761962737366,0.03442079,185.73,185.66,11.21735436]
[1761962737562,0.03442079,185.73,185.66,9.37890677]
[1761962737968,8.88784931,185.73,185.66,9.37890677]
[1761962738160,1.83844759,185.75,185.66,9.37890677]
[1761962738462,8.87720439,185.74,185.66,9.37890677]
[1761962738669,8.87720439,185.73,185.66,9.37890677]
[1761962738867,4.56894584,185.72,185.66,9.37890677]
[1761962739057,4.8496,185.69,185.66,2.67]
[1761962739259,1.83844759,185.75,185.66,2.67]
[1761962739456,1.83844759,185.73,185.66,2.67]
[1761962739659,4.8498,185.68,185.66,2.67]
[1761962747559,0.03442955,185.69,185.62,1.83844759]
[1761962747765,0.03442955,185.69,185.61,2.66]
[1761962748173,4.59002431,185.69,185.61,2.66]
[1761962749772,4.59002431,185.69,185.61,4.49844759]
[1761962749970,4.59002431,185.69,185.62,2.66]
[1761962753977,1.83844759,185.64,185.53,2.66]
[1761962754180,4.55559476,185.63,185.53,2.66]
[1761962754476,1.83844759,185.6,185.53,2.66]
[1761962755271,1.83844759,185.61,185.53,2.66]
[1761962755472,4.8521,185.59,185.53,2.66]
[1761962755675,1.83844759,185.64,185.53,2.66]
[1761962756072,4.8514,185.62,185.53,2.66]
[1761962756271,1.83844759,185.64,185.53,2.66]
[1761962756874,4.852,185.6,185.53,2.66]
[1761962757076,1.83844759,185.64,185.53,2.66]
[1761962757276,9.6995,185.68,185.53,2.66]
[1761962757481,1.83844759,185.63,185.53,2.66]
[1761962759878,4.8516,185.61,185.53,2.66]
[1761962760182,0.03462063,185.6,185.53,2.66]
[1761962760367,1.87306822,185.6,185.53,2.66]
[1761962760982,4.8522,185.59,185.53,2.66]
[1761962764286,4.8525,185.58,185.53,2.66]
[1761962764884,4.8527,185.57,185.53,2.66]
[1761962765880,4.8531,185.55,185.53,2.66]
[1761962767982,1.83844759,185.56,185.53,2.66]
[1761962768179,4.8526,185.57,185.53,2.66]
[1761962768180,1.83844759,185.59,185.53,2.66]
[1761962768982,4.8532,185.55,185.53,2.66]
[1761962777087,4.8537,185.53,185.49,10.049416]
[1761962777291,0.03533178,185.56,185.5,2.8]
[1761962778086,4.8541,185.52,185.5,2.8]
[1761962780990,4.8543,185.51,185.49,10.049416]
[1761962781293,4.8543,185.51,185.49,12.979416]
[1761962781495,4.8543,185.51,185.5,2.93]
[1761962783394,9.7036,185.6,185.5,2.93]
[1761962783603,1.83844759,185.56,185.5,2.93]
[1761962784595,4.854,185.52,185.5,2.93]
[1761962785499,9.7014,185.65,185.5,2.93]
[1761962785696,1.83844759,185.59,185.5,2.93]
[1761962785897,4.52080423,185.58,185.5,2.93]
[1761962786189,1.83844759,185.62,185.52,2.93]
[1761962786395,8.74928949,185.61,185.52,2.93]
[1761962786595,4.8526,185.57,185.52,2.93]
[1761962787000,0.03548653,185.56,185.52,2.93]
[1761962787504,0.03548653,185.56,185.53,2.93]
[1761962788198,0.03548653,185.56,185.53,7.93238091]
[1761962788405,0.03548653,185.56,185.54,2.93]
[1761962791396,0.03548653,185.56,185.54,7.93238091]
[1761962791599,0.03548653,185.56,185.55,2.93]
[1761962794697,1.83844759,185.62,185.56,2.93]
[1761962794897,4.54028502,185.61,185.57,2.93]
[1761962795296,4.54028502,185.6,185.58,2.93]
[1761962795496,1.83844759,185.62,185.58,2.93]
[1761962795703,8.78931075,185.61,185.58,2.93]
[1761962795906,1.83844759,185.65,185.58,2.93]
[1761962796101,8.61312027,185.64,185.58,2.93]
[1761962796397,1.83844759,185.69,185.61,2.73]
[1761962796598,8.61645464,185.68,185.61,2.73]
[1761962796797,8.61645464,185.67,185.61,2.73]
[1761962797001,8.61645464,185.66,185.63,2.73]
[1761962797304,107.78,185.75,185.64,2.73]
[1761962797305,1.83844759,185.72,185.64,2.73]
[1761962797597,8.61676177,185.71,185.64,2.73]
[1761962797805,8.61676177,185.7,185.64,2.73]
[1761962798004,1.83844759,185.72,185.64,2.73]
[1761962798005,8.61676177,185.69,185.64,2.73]
[1761962798201,1.83844759,185.72,185.66,2.73]
[1761962798503,8.53347363,185.71,185.67,2.73]
[1761962798699,1.83844759,185.75,185.68,2.73]
[1761962799002,8.53646223,185.74,185.68,2.73]
[1761962799206,8.53646223,185.73,185.68,2.73]
[1761962799408,8.53646223,185.72,185.68,2.73]
[1761962799605,2.87283395,185.73,185.68,2.73]
[1761962799795,8.52901149,185.72,185.68,2.73]
[1761962800000,8.52901149,185.71,185.68,2.73]
[1761962800196,2.87283395,185.73,185.68,2.73]
[1761962800400,8.51725214,185.72,185.68,2.73]
[1761962800604,2.87283395,185.73,185.68,2.73]
[1761962800906,8.51663936,185.72,185.68,2.73]
[1761962801110,2.87283395,185.73,185.68,2.73]
[1761962801409,4.3313933,185.72,185.68,2.73]
[1761962801604,2.87283395,185.73,185.68,2.73]
[1761962804007,4.8488,185.72,185.68,2.73]
[1761962804205,4.8488,185.72,185.7,2.73]
[1761962807218,2.87283395,185.76,185.7,2.73]
[1761962807908,4.8486,185.73,185.7,2.73]
[1761962808615,4.8488,185.72,185.7,2.73]
[1761962814021,4.849,185.71,185.69,0.03402777]
[1761962814316,4.849,185.71,185.69,2.84402777]
[1761962814812,4.849,185.71,185.69,2.81]
[1761962816720,4.8493,185.7,185.66,2.81]
[1761962817220,4.8493,185.7,185.68,2.8456659]
[1761962832633,4.8487,185.72,185.68,2.8456659]
[1761962833334,4.849,185.71,185.68,2.8456659]
[1761962833530,4.849,185.71,185.68,2.81]
[1761962834335,4.849,185.71,185.69,2.81]
[1761962837336,4.849,185.71,185.69,7.80459082]
[1761962837732,4.849,185.71,185.69,2.81]
[1761962839432,4.34962077,185.7,185.68,5.03026509]
[1761962839743,13.38838322,185.69,185.68,0.03567427]
[1761962840639,9.19864676,185.69,185.68,0.03567427]